bitfinex/quotes_SOLUSD_20220119
["timestamp","ask_amount","ask_price","bid_price","bid_amount"]
[1642623871042,25.3257546,136.52,136.46,0.25]
[1642623871243,25.3257546,136.52,136.43,0.25]
[1642623871445,10.9928,136.51,136.43,0.25]
[1642623872444,13.0653546,136.51,136.43,0.25]
[1642623872648,14.89248062,136.51,136.42,0.25]
[1642623872849,2.0725546,136.5,136.42,0.25]
[1642623873051,31.1313546,136.5,136.39,0.25]
[1642623873251,10.9961,136.47,136.39,0.25]
[1642623873451,10.9961,136.47,136.39,3.181]
[1642623873652,10.9961,136.47,136.39,2.931]
[1642623873852,17.9961,136.47,136.39,2.931]
[1642623874653,6.0,136.46,136.39,2.931]
[1642623874854,10.9984,136.44,136.39,2.931]
[1642623876354,10.9984,136.44,136.36,38.76460692]
[1642623876557,10.9984,136.44,136.37,6.25]
[1642623879058,10.9984,136.44,136.37,6.0]
[1642623886361,10.9984,136.44,136.36,38.76460692]
[1642623886564,10.9984,136.44,136.37,0.25]
[1642623888465,24.7304,136.45,136.37,0.25]
[1642623889067,24.7304,136.45,136.37,16.76]
[1642623891400,24.7304,136.45,136.37,16.51]
[1642623892398,35.728,136.45,136.37,10.51]
[1642623894200,41.501,136.45,136.37,10.51]
[1642623894801,41.501,136.45,136.35,24.3868]
[1642623895001,41.501,136.45,136.33,35.082]
[1642623895002,11.0004,136.42,136.33,35.082]
[1642623895203,18.0134,136.42,136.33,35.082]
[1642623895601,1.51578973,136.4,136.33,35.082]
[1642623896201,1.51578973,136.4,136.34,0.25]
[1642623901313,22.7766,136.43,136.34,0.25]
[1642623901514,25.9270546,136.46,136.36,37.35866567]
[1642623901712,23.8935,136.45,136.36,37.35866567]
[1642623902316,34.8914,136.45,136.36,37.35866567]
[1642623902513,23.8935,136.45,136.36,37.35866567]
[1642623902812,2.0725546,136.47,136.37,0.25]
[1642623903016,2.0725546,136.48,136.38,10.51]
[1642623903214,2.0725546,136.49,136.39,3.181]
[1642623903418,2.0725546,136.49,136.39,16.76]
[1642623903615,2.0725546,136.49,136.39,10.76]
[1642623904418,10.9951,136.48,136.39,10.76]
[1642623905817,10.9951,136.48,136.39,10.51]
[1642623906017,13.0676546,136.48,136.4,0.25]
[1642623906416,10.9985,136.45,136.4,0.25]
[1642623907118,10.9985,136.45,136.38,0.25]
[1642623909519,10.9985,136.45,136.38,6.25]
[1642623910019,10.9985,136.45,136.38,0.25]
[1642623910420,10.9985,136.45,136.38,6.25]
[1642623911024,33.5945,136.47,136.38,6.25]
[1642623911226,2.0725546,136.48,136.39,13.442]
[1642623911424,2.0725546,136.49,136.39,36.3415]
[1642623911624,2.0725546,136.49,136.4,73.42]
[1642623911825,2.0725546,136.5,136.42,40.31118269]
[1642623912123,5.44242613,136.53,136.43,19.44]
[1642623912124,3.38574101,136.53,136.43,19.44]
[1642623912327,3.38574101,136.53,136.43,19.95]
[1642623912927,3.38574101,136.53,136.43,19.69]
[1642623913326,14.37664101,136.53,136.43,19.69]
[1642623913530,2.0725546,136.52,136.43,19.69]
[1642623914431,14.37664101,136.53,136.43,19.69]
[1642623914630,14.37664101,136.53,136.43,92.86]
[1642623915231,0.25,136.52,136.43,92.86]
[1642623916532,0.25,136.52,136.43,19.69]
[1642623916732,2.0725546,136.53,136.43,19.69]
[1642623916933,2.0725546,136.54,136.43,21.06990791]
[1642623917161,24.8337546,136.56,136.43,44.07900791]
[1642623917569,22.7612,136.56,136.43,44.07900791]
[1642623917770,22.7612,136.56,136.44,73.17]
[1642623917969,22.7612,136.56,136.45,13.44]
[1642623918171,22.7612,136.56,136.46,73.17]
[1642623918471,22.7612,136.56,136.48,37.03062086]
[1642623918869,22.7612,136.56,136.49,0.25]
[1642623921106,22.7612,136.56,136.47,8.93]
[1642623921107,33.7497,136.56,136.47,8.93]
[1642623921308,6.0,136.55,136.45,23.5967]
[1642623921707,6.0,136.55,136.43,10.51]
[1642623921908,24.5586,136.54,136.43,10.51]
[1642623922109,24.5586,136.54,136.44,47.21794492]
[1642623922512,24.5586,136.54,136.45,0.25]
[1642623923308,10.9915,136.53,136.45,0.25]
[1642623930415,24.5586,136.54,136.45,0.25]
[1642623931011,24.5586,136.54,136.45,1.62990791]
[1642623931911,2.0725546,136.56,136.46,13.44]
[1642623932110,47.7464546,136.58,136.46,30.4262]
[1642623932311,45.6739,136.58,136.47,1.62990791]
[1642623932509,45.6739,136.58,136.48,8.928]
[1642623932710,45.6739,136.58,136.49,46.13413466]
[1642623933013,45.6739,136.58,136.5,2.928]
[1642623933211,45.6739,136.58,136.51,0.25]
[1642623934214,56.6607,136.58,136.51,0.25]
[1642623934416,6.0,136.57,136.51,0.25]
[1642623934621,6.0,136.57,136.5,2.928]
[1642623935116,8.0725546,136.57,136.5,2.928]
[1642623936317,10.9899,136.55,136.5,2.928]
[1642623937118,10.9899,136.55,136.45,10.51]
[1642623937318,23.0838,136.54,136.44,2.928]
[1642623937518,10.992,136.52,136.43,41.0721173]
[1642623937721,24.7323,136.51,136.44,2.93]
[1642623937919,29.8033,136.51,136.41,25.4359]
[1642623938122,29.8033,136.51,136.4,28.01280964]
[1642623938319,29.8033,136.51,136.41,6.0]
[1642623938519,29.8033,136.51,136.42,2.931]
[1642623938921,29.8033,136.51,136.43,41.7553004]
[1642623939123,24.7323,136.51,136.43,42.0053004]
[1642623939320,10.9937,136.5,136.43,42.0053004]
[1642623942424,24.7323,136.51,136.43,43.39201247]
[1642623943624,24.7323,136.51,136.43,42.0053004]
[1642623949331,35.7248,136.51,136.43,42.0053004]
[1642623949730,24.7323,136.51,136.43,43.39201247]
[1642623949928,24.7323,136.51,136.44,6.0]
[1642623950330,24.7323,136.51,136.45,0.25]
[1642623950532,24.5573,136.53,136.45,0.25]
[1642623950935,24.5573,136.53,136.45,1.63671207]
[1642623952033,24.5573,136.53,136.45,0.25]
[1642623952832,24.5573,136.53,136.46,2.93]
[1642623953234,24.5573,136.53,136.47,0.25]
[1642623954033,24.5573,136.53,136.45,2.93]
[1642623954233,24.5573,136.53,136.44,8.93]
[1642623954433,24.5573,136.53,136.45,10.51]
[1642623955233,24.5573,136.53,136.46,0.25]
[1642623955433,25.4522546,136.54,136.48,46.40696607]
[1642623955634,23.3797,136.54,136.48,46.40696607]
[1642623955836,23.3797,136.54,136.49,0.25]
[1642623959140,34.3698,136.54,136.47,2.93]
[1642623959337,36.4423546,136.54,136.45,2.93]
[1642623959536,36.4423546,136.54,136.45,3.18]
[1642623960141,36.4423546,136.54,136.46,43.76408962]
[1642623960541,36.4423546,136.54,136.47,0.25]
[1642623962047,36.4423546,136.54,136.45,2.93]
[1642623962275,10.9941,136.5,136.42,2.03859466]
[1642623962480,10.9941,136.5,136.41,10.51]
[1642623962874,10.9941,136.5,136.4,2.931]
[1642623963178,10.9941,136.5,136.41,43.35066082]
[1642623963680,10.4941,136.5,136.42,0.25]
[1642623968983,2.0725546,136.51,136.42,0.25]
[1642623969182,6.0,136.49,136.39,4.96959466]
[1642623969380,6.0,136.49,136.39,2.931]
[1642623969381,22.8948,136.48,136.39,2.931]
[1642623969580,30.9673546,136.48,136.4,0.25]
[1642623970382,30.9673546,136.48,136.39,45.66114559]
[1642623970583,2.0725546,136.47,136.35,39.62489466]
[1642623970783,75.2425546,136.47,136.35,15.47959466]
[1642623970983,2.0725546,136.46,136.35,2.931]
[1642623971183,2.0725546,136.46,136.34,549.3230583]
[1642623971184,37.4259546,136.46,136.34,549.3230583]
[1642623971386,2.0725546,136.45,136.34,547.28446364]
[1642623971584,37.4259546,136.46,136.34,547.28446364]
[1642623971782,37.4259546,136.46,136.35,49.53078807]
[1642623972482,73.17,136.45,136.35,49.53078807]
[1642623972684,73.17,136.45,136.36,0.25]
[1642623972883,6.25,136.44,136.36,0.25]
[1642623973685,79.42,136.44,136.36,0.25]
[1642623973883,0.25,136.44,136.36,0.25]
[1642623974285,6.25,136.45,136.36,0.25]
[1642623974685,24.8434,136.46,136.36,0.25]
[1642623974887,24.8434,136.46,136.36,9.56571207]
[1642623976087,24.8434,136.46,136.36,20.07571207]
[1642623976486,24.8434,136.46,136.37,6.0]
[1642623976689,24.8434,136.46,136.38,3.182]
[1642623977489,24.8434,136.46,136.38,0.25]
[1642623980287,24.3434,136.46,136.38,0.25]
[1642623982691,24.3434,136.46,136.37,0.25]
[1642623983091,24.3434,136.46,136.36,0.25]
[1642623983092,1.61576182,136.44,136.36,0.25]
[1642623983491,74.78576182,136.44,136.36,0.25]
[1642623985295,74.78576182,136.44,136.35,49.53078807]
[1642623985695,0.25,136.43,136.35,49.53078807]
[1642623986596,6.25,136.43,136.35,49.53078807]
[1642623986797,6.25,136.43,136.36,0.25]
[1642623987698,1.61576182,136.44,136.36,0.25]
[1642623988097,1.61576182,136.44,136.37,1.38671217]
[1642623988298,1.61576182,136.44,136.38,3.182]
[1642623989531,1.61576182,136.44,136.38,0.25]
[1642623989728,1.61576182,136.44,136.37,0.25]
[1642623993633,1.61576182,136.44,136.36,0.25]
[1642623993832,25.90296182,136.44,136.36,0.25]
[1642623995834,6.0,136.43,136.35,0.25]
[1642623996937,79.17,136.43,136.35,0.25]
[1642623997135,0.25,136.42,136.35,0.25]
[1642623999339,0.25,136.42,136.34,0.25]
[1642623999739,0.25,136.42,136.33,6.25]
[1642624000439,11.2502,136.42,136.33,6.25]
[1642624001538,11.0002,136.42,136.33,6.25]
[1642624001738,11.0002,136.42,136.33,8.28859466]
[1642624002545,6.0,136.41,136.33,8.28859466]
[1642624002740,11.0015,136.4,136.33,6.25]
[1642624006750,76.85831642,136.44,136.33,6.25]
[1642624006951,73.17,136.42,136.33,6.25]
[1642624007680,96.7243,136.42,136.33,6.25]
[1642624010078,96.7243,136.42,136.33,0.25]
[1642624014183,79.17,136.41,136.33,0.25]
[1642624019195,23.5543,136.42,136.33,0.25]
[1642624021497,96.7243,136.42,136.33,0.25]
[1642624022501,98.7968546,136.42,136.33,0.25]
[1642624022904,98.7968546,136.42,136.32,2.932]
[1642624022905,7.82712602,136.41,136.32,2.932]
[1642624023209,9.89968062,136.41,136.31,22.8265]
[1642624023403,24.78782602,136.4,136.31,22.8265]
[1642624023603,97.95782602,136.4,136.31,22.8265]
[1642624023804,98.2032546,136.4,136.31,22.8265]
[1642624024012,96.1307,136.4,136.31,22.8265]
[1642624024407,98.2032546,136.4,136.31,22.8265]
[1642624024906,96.1307,136.4,136.31,22.8265]
[1642624025105,96.1307,136.4,136.32,0.25]
[1642624025507,0.25,136.39,136.3,0.25]
[1642624025710,0.25,136.39,136.29,26.32379466]
[1642624025938,10.51,136.38,136.29,26.32379466]
[1642624026136,10.51,136.38,136.28,28.85922441]
[1642624026137,17.171,136.38,136.28,28.85922441]
[1642624026336,21.07068062,136.38,136.28,24.425]
[1642624026536,0.5365,136.37,136.28,24.425]
[1642624026736,25.3066546,136.37,136.26,37.04299994]
[1642624026939,11.0062,136.36,136.26,35.00440528]
[1642624027136,0.5368,136.35,136.26,35.00440528]
[1642624027336,0.537,136.36,136.26,35.00440528]
[1642624028138,11.0072,136.33,136.27,0.25]
[1642624028342,22.6771,136.35,136.27,0.25]
[1642624029137,0.25,136.34,136.27,0.25]
[1642624030038,11.0066,136.34,136.27,0.25]
[1642624030242,0.5368,136.38,136.27,0.25]
[1642624030439,23.4224,136.39,136.27,30.36169471]
[1642624030640,23.4224,136.39,136.27,32.40028937]
[1642624030849,23.4224,136.39,136.27,32.66028937]
[1642624031040,23.4224,136.39,136.27,32.40028937]
[1642624031241,6.0,136.38,136.27,31.01409466]
[1642624031439,17.539,136.38,136.27,39.9782]
[1642624031640,24.2476,136.37,136.27,33.9782]
[1642624031839,24.2476,136.37,136.27,35.36439471]
[1642624032040,24.2476,136.37,136.27,26.40028937]
[1642624032240,24.2476,136.37,136.27,22.9755]
[1642624032441,24.2476,136.37,136.28,2.934]
[1642624032644,24.2476,136.37,136.28,6.0]
[1642624032841,24.2476,136.37,136.29,0.25]
[1642624033142,35.2514,136.37,136.27,25.9095]
[1642624037048,6.0,136.36,136.27,25.9095]
[1642624037250,11.0073,136.34,136.27,25.9095]
[1642624038050,11.0073,136.34,136.27,73.72179361]
[1642624039053,11.0073,136.34,136.27,25.9095]
[1642624046187,11.0073,136.34,136.27,27.30325656]
[1642624050793,11.0073,136.34,136.27,25.9095]
[1642624051390,11.0073,136.34,136.27,22.9755]
[1642624060297,11.0073,136.34,136.27,25.01409466]
[1642624064000,10.0073,136.34,136.27,25.01409466]
[1642624067309,23.861,136.35,136.27,25.01409466]
[1642624068309,23.861,136.35,136.29,37.69765497]
[1642624068710,23.861,136.35,136.3,0.25]
[1642624070615,23.861,136.35,136.29,37.69765497]
[1642624071741,23.861,136.35,136.3,0.25]
[1642624071942,23.861,136.35,136.29,37.69765497]
[1642624071943,23.861,136.35,136.28,2.03859466]
[1642624072149,0.5368,136.34,136.27,2.934]
[1642624072345,6.5368,136.34,136.27,2.934]
[1642624072746,6.5368,136.34,136.25,2.03859466]
[1642624072947,6.5368,136.34,136.25,43.01162116]
[1642624072948,23.347,136.33,136.25,43.01162116]
[1642624073347,11.0077,136.32,136.26,0.25]
[1642624073750,11.0077,136.32,136.25,2.03859466]
[1642624073947,11.5443,136.32,136.25,2.03859466]
[1642624074147,24.1563,136.31,136.24,2.03859466]
[1642624074548,11.01,136.3,136.24,2.03859466]
[1642624074747,11.01,136.3,136.23,8.03859466]
[1642624074947,1.58251147,136.29,136.23,8.03859466]
[1642624075150,1.58251147,136.29,136.24,0.25]
[1642624076348,12.59301147,136.29,136.24,0.25]
[1642624077150,1.58251147,136.29,136.24,0.25]
[1642624081354,24.1563,136.31,136.24,1.64375656]
[1642624081566,24.1563,136.31,136.25,2.935]
[1642624081758,24.1563,136.31,136.26,0.25]
[1642624081955,10.51,136.34,136.26,0.25]
[1642624082194,22.9123,136.33,136.26,0.25]
[1642624083460,22.9123,136.33,136.27,2.934]
[1642624083656,33.9193,136.33,136.27,39.93270472]
[1642624083857,33.9193,136.33,136.25,3.184]
[1642624084056,6.0,136.32,136.25,3.184]
[1642624084257,79.7083,136.32,136.25,0.25]
[1642624084456,0.25,136.31,136.25,0.25]
[1642624084659,24.4863,136.31,136.25,0.25]
[1642624084859,24.2363,136.31,136.25,0.25]
[1642624085657,11.01,136.3,136.25,0.25]
[1642624086859,35.2449,136.31,136.25,0.25]
[1642624088260,35.2449,136.31,136.24,0.25]
[1642624090864,108.4149,136.31,136.22,2.03859466]
[1642624091062,11.0103,136.29,136.23,2.935]
[1642624091261,11.0103,136.29,136.2,2.03859466]
[1642624091463,24.0918,136.28,136.18,2.03859466]
[1642624091661,23.5584,136.28,136.18,2.03859466]
[1642624091862,0.5302,136.27,136.18,2.03859466]
[1642624092063,23.5584,136.28,136.19,43.45856867]
[1642624092264,0.5269,136.27,136.19,49.45856867]
[1642624092464,11.0135,136.25,136.19,49.45856867]
[1642624092663,11.0135,136.25,136.2,0.25]
[1642624095365,11.0135,136.25,136.19,2.936]
[1642624095766,11.0135,136.25,136.2,0.25]
[1642624095965,11.0135,136.25,136.19,2.936]
[1642624096168,12.84062602,136.25,136.16,26.72417566]
[1642624096465,11.0165,136.22,136.16,0.173481]
[1642624097865,35.1616,136.22,136.16,0.173481]
[1642624098269,35.1616,136.22,136.17,0.172803]
[1642624098472,6.0,136.21,136.17,0.172803]
[1642624098672,11.0187,136.2,136.17,0.172803]
[1642624098871,35.2111,136.2,136.17,0.172803]
[1642624099869,45.7211,136.2,136.17,0.172803]
[1642624100270,118.8911,136.2,136.17,0.172803]
[1642624101075,15.561456,136.19,136.17,0.172803]
[1642624101274,11.021,136.18,136.17,0.172803]
[1642624101474,42.938603,136.18,136.17,0.172803]
[1642624102176,42.938603,136.18,136.15,2.957e-05]
[1642624102377,14.851888,136.17,136.15,2.957e-05]
[1642624102578,84.1929,136.16,136.1,1.45607157]
[1642624103576,1.976,136.15,136.1,1.45607157]
[1642624103777,26.205928,136.14,136.1,0.95607157]
[1642624103977,21.5351,136.14,136.06,2.938]
[1642624104176,73.17,136.13,136.04,2.939]
[1642624104378,10.51,136.12,136.03,0.36742393]
[1642624104576,34.0409,136.12,136.03,35.69791512]
[1642624105504,34.0409,136.12,136.04,6.25]
[1642624105704,34.0409,136.12,136.04,5.75]
[1642624105906,34.0409,136.12,136.05,0.25]
[1642624106306,34.0409,136.12,136.04,5.75]
[1642624106505,11.0263,136.11,136.03,0.36742393]
[1642624106706,36.86378,136.11,136.03,0.36742393]
[1642624106906,73.17,136.09,136.03,0.36742393]
[1642624107108,11.290716,136.08,136.03,0.36742393]
[1642624107306,10.51,136.1,136.03,0.36742393]
[1642624107507,0.25,136.07,136.03,0.36742393]
[1642624107708,36.891139,136.06,136.03,0.36742393]
[1642624107907,11.292376,136.06,136.03,0.36742393]
[1642624108107,10.51,136.08,136.03,48.36886307]
[1642624108509,21.5379,136.08,136.03,48.36886307]
[1642624108707,21.5379,136.08,136.03,0.36742393]
[1642624109406,25.595001,136.07,136.03,0.36742393]
[1642624109609,22.321576,136.06,136.03,0.36742393]
[1642624109908,11.0292,136.06,136.03,0.36742393]
[1642624110109,11.0292,136.06,136.02,2.30642393]
[1642624110308,11.0292,136.06,136.01,49.07147971]
[1642624110510,11.0292,136.06,136.02,0.25]
[1642624110713,11.0292,136.06,136.01,48.82147971]
[1642624111312,11.0292,136.06,135.98,2.94]
[1642624111515,11.0292,136.06,135.99,6.0]
[1642624112313,11.0292,136.06,136.0,49.48731509]
[1642624112512,11.0292,136.06,136.01,6.0]
[1642624112713,11.0292,136.06,136.02,0.25]
[1642624114815,11.0292,136.06,136.01,0.25]
[1642624115215,11.0292,136.06,135.99,6.25]
[1642624116016,11.0292,136.06,135.99,46.98806257]
[1642624116818,11.0292,136.06,135.99,6.25]
[1642624117819,11.0292,136.06,135.99,46.97472141]
[1642624121628,11.0292,136.06,136.0,2.94]
[1642624121824,11.0292,136.06,136.01,0.25]
[1642624124272,11.0292,136.06,136.0,2.94]
[1642624124670,6.25,136.05,136.0,2.94]
[1642624124869,13.9754,136.04,136.0,2.94]
[1642624125275,0.25,136.03,136.0,2.94]
[1642624125470,0.25,136.03,135.93,2.94]
[1642624125670,24.8187,136.03,135.93,2.94]
[1642624125869,24.5687,136.03,135.93,2.94]
[1642624126069,11.0356,136.02,135.94,1.39097584]
[1642624126270,11.0356,136.02,135.95,52.09544903]
[1642624126670,11.0356,136.02,135.96,0.25]
[1642624127069,11.0356,136.02,135.96,8.691]
[1642624127870,11.0356,136.02,135.96,2.691]
[1642624128272,11.0356,136.02,135.95,49.15444903]
[1642624128471,11.0356,136.02,135.96,0.25]
[1642624128673,21.5408,136.04,135.97,2.941]
[1642624128877,21.5408,136.04,135.98,43.62647958]
[1642624129073,21.5408,136.04,135.98,43.87647958]
[1642624129276,21.5408,136.04,135.98,43.55778982]
[1642624129773,21.5408,136.04,135.96,6.25]
[1642624129974,21.5408,136.04,135.96,0.25]
[1642624130175,24.4818,136.04,135.96,0.25]
[1642624130376,24.4818,136.04,135.96,6.25]
[1642624130975,24.4818,136.04,135.96,49.18831087]
[1642624131176,21.5408,136.04,135.96,52.12931087]
[1642624131576,21.5408,136.04,135.96,49.18831087]
[1642624132777,0.25,136.03,135.96,49.18831087]
[1642624132977,11.0321,136.02,135.96,6.25]
[1642624133380,11.0321,136.02,135.95,2.941]
[1642624133579,0.25,136.01,135.95,2.941]
[1642624133779,3.191,136.01,135.95,2.941]
[1642624133979,6.25,136.01,135.95,2.941]
[1642624134379,2.941,136.0,135.91,54.22809466]
[1642624134580,27.5363,136.0,135.91,49.2485]
[1642624134805,38.5719,136.0,135.91,2.942]
[1642624135002,19.900329,135.99,135.88,2.11822368]
[1642624135203,2.442,135.98,135.88,2.11822368]
[1642624135404,2.442,135.98,135.88,5.06022368]
[1642624136102,2.442,135.98,135.89,6.0]
[1642624136502,73.17,135.95,135.88,5.06022368]
[1642624136703,2.906,135.94,135.88,0.07962902]
[1642624137903,11.0394,135.93,135.88,0.07962902]
[1642624139303,11.28679,135.92,135.88,0.07962902]
[1642624139503,11.0416,135.91,135.88,0.07962902]
[1642624142105,11.04,135.93,135.88,0.07962902]
[1642624142718,2.906,135.94,135.88,0.07962902]
[1642624145122,2.906,135.94,135.89,2.943]
[1642624145322,2.906,135.94,135.9,46.38802436]
[1642624145981,2.906,135.94,135.91,0.25]
[1642624146121,0.0001,135.94,135.92,43.06439994]
[1642624146321,0.0001,135.94,135.93,0.25]
[1642624146824,34.5887,136.01,135.93,0.25]
[1642624147022,34.5887,136.01,135.93,49.78581057]
[1642624147423,34.5887,136.01,135.93,60.81851057]
[1642624149722,11.0319,136.03,135.93,60.81851057]
[1642624149923,11.0319,136.03,135.94,2.941]
[1642624150125,11.0319,136.03,135.95,11.0304]
[1642624150328,23.3248,136.05,135.96,47.53004875]
[1642624150724,23.3248,136.05,135.97,0.25]
[1642624151328,34.355,136.05,135.97,11.0295]
[1642624151527,11.560246,136.04,135.93,2.03859466]
[1642624151727,34.1013,136.04,135.91,4.97959466]
[1642624151928,6.0,136.03,135.9,2.03859466]
[1642624152129,6.0,136.03,135.91,2.941]
[1642624152327,0.25,136.02,135.92,39.78427163]
[1642624153428,23.819,136.02,135.92,39.78427163]
[1642624153628,11.0344,136.01,135.92,39.78427163]
[1642624154026,11.0344,136.01,135.92,42.72527163]
[1642624155027,11.0344,136.01,135.92,39.78427163]
[1642624157841,60.6041,136.02,135.93,0.25]
[1642624157842,23.569,136.02,135.93,0.25]
[1642624158045,23.3248,136.05,135.93,8.28859466]
[1642624158242,23.3248,136.05,135.95,36.79943266]
[1642624158443,23.3248,136.05,135.96,11.0295]
[1642624158642,23.3248,136.05,135.96,12.67537238]
[1642624158843,23.3248,136.05,135.96,1.14587238]
[1642624159342,23.3248,136.05,135.96,4.08687238]
[1642624159944,23.3248,136.05,135.96,2.941]
[1642624160144,23.3248,136.05,135.93,26.49319466]
[1642624160344,30.0008,136.04,135.91,4.97959466]
[1642624160547,30.0008,136.04,135.88,27.69583275]
[1642624160548,40.5108,136.04,135.9,2.03859466]
[1642624160744,2.07712602,136.03,135.88,25.94092368]
[1642624160974,10.51,136.02,135.88,25.94092368]
[1642624161148,20.09812602,136.02,135.88,23.90232902]
[1642624161346,56.47326002,136.01,135.88,23.90232902]
[1642624161548,56.43264,136.0,135.94,11.0314]
[1642624161749,22.7953,135.99,135.88,0.07962902]
[1642624162050,10.51,135.98,135.88,1.4755014]
[1642624162256,23.2997,135.99,135.9,40.54832575]
[1642624162652,23.2997,135.99,135.9,41.94419813]
[1642624162857,23.2997,135.99,135.9,40.54832575]
[1642624163251,0.25,135.98,135.9,40.54832575]
[1642624163863,26.277165,135.97,135.89,2.942]
[1642624164053,40.725811,135.97,135.89,2.942]
[1642624164451,18.415532,135.96,135.89,2.942]
[1642624165051,11.275137,135.95,135.89,2.942]
[1642624165254,11.275137,135.95,135.88,1.47489383]
[1642624165255,11.0398,135.94,135.9,45.36209821]
[1642624165454,0.25,135.98,135.9,45.36209821]
[1642624166457,11.2861,135.98,135.9,56.39729821]
[1642624167655,11.2861,135.98,135.9,45.36209821]
[1642624167856,11.2861,135.98,135.89,2.942]
[1642624169084,11.2861,135.98,135.88,0.07962902]
[1642624169085,11.2861,135.98,135.88,3.02162902]
[1642624170285,11.2861,135.98,135.88,0.07962902]
[1642624170683,11.2861,135.98,135.88,1.72489383]
[1642624171085,11.0361,135.98,135.88,12.76159383]
[1642624171490,11.0361,135.98,135.88,0.32962902]
[1642624171690,11.0361,135.98,135.88,0.07962902]
[1642624172091,11.0361,135.98,135.88,0.32962902]
[1642624172291,11.0361,135.98,135.88,0.07962902]
[1642624172692,0.25,135.97,135.88,0.07962902]
[1642624172891,11.0378,135.95,135.88,0.07962902]
[1642624173500,16.3128,135.95,135.88,0.07962902]
[1642624174695,42.104285,135.94,135.88,0.07962902]
[1642624174894,50.852387,135.93,135.88,0.07962902]
[1642624175094,124.022387,135.93,135.88,0.07962902]
[1642624175294,22.409905,135.92,135.88,0.07962902]
[1642624175496,22.409077,135.92,135.88,0.07962902]
[1642624175695,73.17,135.93,135.88,0.07962902]
[1642624175996,0.25,135.92,135.88,0.07962902]
[1642624176194,22.659077,135.92,135.88,0.07962902]
[1642624176395,11.0419,135.91,135.88,0.07962902]
[1642624180700,22.6232,135.92,135.88,0.07962902]
[1642624181010,11.0392,135.94,135.88,0.07962902]
[1642624181202,24.446,135.96,135.88,0.07962902]
[1642624182401,15.977617,135.95,135.88,0.07962902]
[1642624182801,15.727617,135.94,135.88,0.07962902]
[1642624183404,0.25,135.93,135.88,0.07962902]
[1642624183705,57.864333,135.92,135.88,0.07962902]
[1642624184104,0.25,135.91,135.88,0.07962902]
[1642624184306,8.287,135.91,135.88,0.07962902]
[1642624184503,11.0431,135.9,135.88,0.07962902]
[1642624186206,34.3065,135.92,135.88,0.07962902]
[1642624186515,15.728774,135.91,135.88,0.07962902]
[1642624187105,31.654717,135.91,135.88,0.07962902]
[1642624187305,4.882423,135.9,135.88,0.07962902]
[1642624187704,23.2657,135.92,135.88,0.07962902]
[1642624187904,15.731094,135.91,135.88,0.07962902]
[1642624188104,9.847581,135.91,135.88,0.07962902]
[1642624188304,23.2657,135.92,135.89,3.03219997]
[1642624188504,35.2789,135.93,135.88,0.07962902]
[1642624188708,7.051869,135.92,135.88,0.07962902]
[1642624189508,13.519561,135.92,135.88,0.07962902]
[1642624189707,0.25,135.91,135.88,0.07962902]
[1642624189908,11.0431,135.9,135.88,0.07962902]
[1642624190108,16.5981,135.9,135.88,0.07962902]
[1642624191710,11.0431,135.9,135.88,0.07962902]
[1642624191910,11.0408,135.92,135.88,0.07962902]
[1642624192112,11.558764,135.91,135.88,0.07962902]
[1642624192314,30.418894,135.91,135.88,0.07962902]
[1642624192511,16.358203,135.9,135.88,0.07962902]